{"text_format":"1","workbook":"xlsx","n_sheets":3,"sheets":["Tid-trykkfasthet","Formfunksjon trykkfasthet","Innstillinger"],"not_rendered":{"charts":2,"images":4,"macros":1,"external_links":0,"defined_names":34,"comments":0,"pivot_tables":0},"unopened":[],"bounds":{"document_bytes":16777216,"sheet_cells":100000,"rows_first":2000,"rows_last":500,"rows_between":2000,"halvings":0,"cell_chars":16384,"cell_head_chars":4096},"cells_cut":0,"cells_raw":0,"read":"whole","date_system":"1900"}

{"sheet":"Tid-trykkfasthet","index":0,"n_rows":68,"n_cols":11,"rows_kept":68,"cut":false,"hidden":false,"merged":[[3,10,4,10],[3,1,4,1],[3,2,4,2],[3,8,4,8],[3,9,4,9]]}
[null,"Fasthet etter modenhetsprinsippet"]
[null,"© ss 2016-02-25"]
[]
[null,"Tid\n[timer]","Betong-\ntemperatur\n[oC]","Midlere\nbetong-\ntemperatur","E","E","Aktiverings-\nenergien","Hastighets-\nfunksjonen","Modenhet \n[timer]","Trykk- fasthet i konstr. [MPa]","Trykk-fasthet ved 20oC. [MPa]"]
[null,null,null,"[ C]","T<20, herd","T>20, herd"]
[null,0,18,{"$f":"+C6","v":18},{"$f":"Innstillinger!$F$18+Innstillinger!$F$19*(20-D6)","v":32000},{"$f":"Innstillinger!$F$18","v":30000},{"$f":"IF(D6>20,F6,E6)","v":32000},{"$f":"+EXP((G6/8.314)*(1/293-1/(273+D6)))","v":0.91367194062849244},{"$f":"H6*(B6)","v":0},{"$f":"IF(I6<='Formfunksjon trykkfasthet'!$C$16,0,'Formfunksjon trykkfasthet'!$C$14*EXP('Formfunksjon trykkfasthet'!$C$15*(1-SQRT(672/('Tid-trykkfasthet'!I6-'Formfunksjon trykkfasthet'!$C$16)))))","v":0},{"$f":"IF(B6<='Formfunksjon trykkfasthet'!$C$16,0,'Formfunksjon trykkfasthet'!$C$14*EXP('Formfunksjon trykkfasthet'!$C$15*(1-SQRT(672/('Tid-trykkfasthet'!B6-'Formfunksjon trykkfasthet'!$C$16)))))","v":0}]
[null,2,18,{"$f":"+(C6+C7)/2","v":18},{"$f":"Innstillinger!$F$18+Innstillinger!$F$19*(20-D7)","v":32000},{"$f":"Innstillinger!$F$18","v":30000},{"$f":"IF(D7>20,F7,E7)","v":32000},{"$f":"+EXP((G7/8.314)*(1/293-1/(273+D7)))","v":0.91367194062849244},{"$f":"IF((B7-B6)<0,0,I6+H7*(B7-B6))","v":1.8273438812569849},{"$f":"IF(I7<='Formfunksjon trykkfasthet'!$C$16,0,'Formfunksjon trykkfasthet'!$C$14*EXP('Formfunksjon trykkfasthet'!$C$15*(1-SQRT(672/('Tid-trykkfasthet'!I7-'Formfunksjon trykkfasthet'!$C$16)))))","v":0},{"$f":"IF(B7<='Formfunksjon trykkfasthet'!$C$16,0,'Formfunksjon trykkfasthet'!$C$14*EXP('Formfunksjon trykkfasthet'!$C$15*(1-SQRT(672/('Tid-trykkfasthet'!B7-'Formfunksjon trykkfasthet'!$C$16)))))","v":0}]
[null,4,19,18.5,{"$f":"Innstillinger!$F$18+Innstillinger!$F$19*(20-D8)","v":31500},{"$f":"Innstillinger!$F$18","v":30000},31500,0.93562508631139929,3.6985940538797832,{"$f":"IF(I8<='Formfunksjon trykkfasthet'!$C$16,0,'Formfunksjon trykkfasthet'!$C$14*EXP('Formfunksjon trykkfasthet'!$C$15*(1-SQRT(672/('Tid-trykkfasthet'!I8-'Formfunksjon trykkfasthet'!$C$16)))))","v":0},{"$f":"IF(B8<='Formfunksjon trykkfasthet'!$C$16,0,'Formfunksjon trykkfasthet'!$C$14*EXP('Formfunksjon trykkfasthet'!$C$15*(1-SQRT(672/('Tid-trykkfasthet'!B8-'Formfunksjon trykkfasthet'!$C$16)))))","v":0}]
[null,6,21,20,{"$f":"Innstillinger!$F$18+Innstillinger!$F$19*(20-D9)","v":30000},{"$f":"Innstillinger!$F$18","v":30000},30000,1,5.6985940538797832,{"$f":"IF(I9<='Formfunksjon trykkfasthet'!$C$16,0,'Formfunksjon trykkfasthet'!$C$14*EXP('Formfunksjon trykkfasthet'!$C$15*(1-SQRT(672/('Tid-trykkfasthet'!I9-'Formfunksjon trykkfasthet'!$C$16)))))","v":0},{"$f":"IF(B9<='Formfunksjon trykkfasthet'!$C$16,0,'Formfunksjon trykkfasthet'!$C$14*EXP('Formfunksjon trykkfasthet'!$C$15*(1-SQRT(672/('Tid-trykkfasthet'!B9-'Formfunksjon trykkfasthet'!$C$16)))))","v":0}]
[null,8,25,23,{"$f":"Innstillinger!$F$18+Innstillinger!$F$19*(20-D10)","v":27000},{"$f":"Innstillinger!$F$18","v":30000},30000,1.13294091631461,7.9644758865090033,{"$f":"IF(I10<='Formfunksjon trykkfasthet'!$C$16,0,'Formfunksjon trykkfasthet'!$C$14*EXP('Formfunksjon trykkfasthet'!$C$15*(1-SQRT(672/('Tid-trykkfasthet'!I10-'Formfunksjon trykkfasthet'!$C$16)))))","v":5.4076293415964061E-8},{"$f":"IF(B10<='Formfunksjon trykkfasthet'!$C$16,0,'Formfunksjon trykkfasthet'!$C$14*EXP('Formfunksjon trykkfasthet'!$C$15*(1-SQRT(672/('Tid-trykkfasthet'!B10-'Formfunksjon trykkfasthet'!$C$16)))))","v":1.1563836876679664E-6}]
[null,10,31,28,{"$f":"Innstillinger!$F$18+Innstillinger!$F$19*(20-D11)","v":22000},{"$f":"Innstillinger!$F$18","v":30000},30000,1.3872396401934222,10.738955166895847,{"$f":"IF(I11<='Formfunksjon trykkfasthet'!$C$16,0,'Formfunksjon trykkfasthet'!$C$14*EXP('Formfunksjon trykkfasthet'!$C$15*(1-SQRT(672/('Tid-trykkfasthet'!I11-'Formfunksjon trykkfasthet'!$C$16)))))","v":1.6587142822915966},{"$f":"IF(B11<='Formfunksjon trykkfasthet'!$C$16,0,'Formfunksjon trykkfasthet'!$C$14*EXP('Formfunksjon trykkfasthet'!$C$15*(1-SQRT(672/('Tid-trykkfasthet'!B11-'Formfunksjon trykkfasthet'!$C$16)))))","v":0.89161405739404864}]
[null,12,36,33.5,{"$f":"Innstillinger!$F$18+Innstillinger!$F$19*(20-D12)","v":16500},{"$f":"Innstillinger!$F$18","v":30000},30000,1.7201887108966101,14.179332588689068,{"$f":"IF(I12<='Formfunksjon trykkfasthet'!$C$16,0,'Formfunksjon trykkfasthet'!$C$14*EXP('Formfunksjon trykkfasthet'!$C$15*(1-SQRT(672/('Tid-trykkfasthet'!I12-'Formfunksjon trykkfasthet'!$C$16)))))","v":5.8455838844832986},{"$f":"IF(B12<='Formfunksjon trykkfasthet'!$C$16,0,'Formfunksjon trykkfasthet'!$C$14*EXP('Formfunksjon trykkfasthet'!$C$15*(1-SQRT(672/('Tid-trykkfasthet'!B12-'Formfunksjon trykkfasthet'!$C$16)))))","v":3.1584553451839832}]
[null,14,40,38,{"$f":"Innstillinger!$F$18+Innstillinger!$F$19*(20-D13)","v":12000},{"$f":"Innstillinger!$F$18","v":30000},30000,2.0396543746016391,18.258641337892346,{"$f":"IF(I13<='Formfunksjon trykkfasthet'!$C$16,0,'Formfunksjon trykkfasthet'!$C$14*EXP('Formfunksjon trykkfasthet'!$C$15*(1-SQRT(672/('Tid-trykkfasthet'!I13-'Formfunksjon trykkfasthet'!$C$16)))))","v":10.396630844359782},{"$f":"IF(B13<='Formfunksjon trykkfasthet'!$C$16,0,'Formfunksjon trykkfasthet'!$C$14*EXP('Formfunksjon trykkfasthet'!$C$15*(1-SQRT(672/('Tid-trykkfasthet'!B13-'Formfunksjon trykkfasthet'!$C$16)))))","v":5.6282629415199565}]
[null,16,42,41,{"$f":"Innstillinger!$F$18+Innstillinger!$F$19*(20-D14)","v":9000},{"$f":"Innstillinger!$F$18","v":30000},30000,2.2787614994558147,22.816164336803975,{"$f":"IF(I14<='Formfunksjon trykkfasthet'!$C$16,0,'Formfunksjon trykkfasthet'!$C$14*EXP('Formfunksjon trykkfasthet'!$C$15*(1-SQRT(672/('Tid-trykkfasthet'!I14-'Formfunksjon trykkfasthet'!$C$16)))))","v":14.579983443631331},{"$f":"IF(B14<='Formfunksjon trykkfasthet'!$C$16,0,'Formfunksjon trykkfasthet'!$C$14*EXP('Formfunksjon trykkfasthet'!$C$15*(1-SQRT(672/('Tid-trykkfasthet'!B14-'Formfunksjon trykkfasthet'!$C$16)))))","v":7.9750155561009501}]
[null,18,42.5,42.25,{"$f":"Innstillinger!$F$18+Innstillinger!$F$19*(20-D15)","v":7750},{"$f":"Innstillinger!$F$18","v":30000},30000,2.3849964397589702,27.586157216321915,{"$f":"IF(I15<='Formfunksjon trykkfasthet'!$C$16,0,'Formfunksjon trykkfasthet'!$C$14*EXP('Formfunksjon trykkfasthet'!$C$15*(1-SQRT(672/('Tid-trykkfasthet'!I15-'Formfunksjon trykkfasthet'!$C$16)))))","v":18.154761332243424},{"$f":"IF(B15<='Formfunksjon trykkfasthet'!$C$16,0,'Formfunksjon trykkfasthet'!$C$14*EXP('Formfunksjon trykkfasthet'!$C$15*(1-SQRT(672/('Tid-trykkfasthet'!B15-'Formfunksjon trykkfasthet'!$C$16)))))","v":10.131867434543667}]
[null,20,42,42.25,{"$f":"Innstillinger!$F$18+Innstillinger!$F$19*(20-D16)","v":7750},{"$f":"Innstillinger!$F$18","v":30000},30000,2.3849964397589702,32.356150095839858,{"$f":"IF(I16<='Formfunksjon trykkfasthet'!$C$16,0,'Formfunksjon trykkfasthet'!$C$14*EXP('Formfunksjon trykkfasthet'!$C$15*(1-SQRT(672/('Tid-trykkfasthet'!I16-'Formfunksjon trykkfasthet'!$C$16)))))","v":21.12610928775576},{"$f":"IF(B16<='Formfunksjon trykkfasthet'!$C$16,0,'Formfunksjon trykkfasthet'!$C$14*EXP('Formfunksjon trykkfasthet'!$C$15*(1-SQRT(672/('Tid-trykkfasthet'!B16-'Formfunksjon trykkfasthet'!$C$16)))))","v":12.098718829525904}]
[null,22,41,41.5,{"$f":"Innstillinger!$F$18+Innstillinger!$F$19*(20-D17)","v":8500},{"$f":"Innstillinger!$F$18","v":30000},30000,2.3207763733989686,36.997702842637793,{"$f":"IF(I17<='Formfunksjon trykkfasthet'!$C$16,0,'Formfunksjon trykkfasthet'!$C$14*EXP('Formfunksjon trykkfasthet'!$C$15*(1-SQRT(672/('Tid-trykkfasthet'!I17-'Formfunksjon trykkfasthet'!$C$16)))))","v":23.585668658130654},{"$f":"IF(B17<='Formfunksjon trykkfasthet'!$C$16,0,'Formfunksjon trykkfasthet'!$C$14*EXP('Formfunksjon trykkfasthet'!$C$15*(1-SQRT(672/('Tid-trykkfasthet'!B17-'Formfunksjon trykkfasthet'!$C$16)))))","v":13.892795830836969}]
[null,24,39,{"$f":"+(C17+C18)/2","v":40},{"$f":"Innstillinger!$F$18+Innstillinger!$F$19*(20-D18)","v":10000},{"$f":"Innstillinger!$F$18","v":30000},30000,2.1966151878341265,41.390933218306046,{"$f":"IF(I18<='Formfunksjon trykkfasthet'!$C$16,0,'Formfunksjon trykkfasthet'!$C$14*EXP('Formfunksjon trykkfasthet'!$C$15*(1-SQRT(672/('Tid-trykkfasthet'!I18-'Formfunksjon trykkfasthet'!$C$16)))))","v":25.611195417668757},{"$f":"IF(B18<='Formfunksjon trykkfasthet'!$C$16,0,'Formfunksjon trykkfasthet'!$C$14*EXP('Formfunksjon trykkfasthet'!$C$15*(1-SQRT(672/('Tid-trykkfasthet'!B18-'Formfunksjon trykkfasthet'!$C$16)))))","v":15.534365178324363}]
[null,26,37,38,{"$f":"Innstillinger!$F$18+Innstillinger!$F$19*(20-D19)","v":12000},{"$f":"Innstillinger!$F$18","v":30000},30000,2.0396543746016391,45.470241967509324,{"$f":"IF(I19<='Formfunksjon trykkfasthet'!$C$16,0,'Formfunksjon trykkfasthet'!$C$14*EXP('Formfunksjon trykkfasthet'!$C$15*(1-SQRT(672/('Tid-trykkfasthet'!I19-'Formfunksjon trykkfasthet'!$C$16)))))","v":27.28163835802529},{"$f":"IF(B19<='Formfunksjon trykkfasthet'!$C$16,0,'Formfunksjon trykkfasthet'!$C$14*EXP('Formfunksjon trykkfasthet'!$C$15*(1-SQRT(672/('Tid-trykkfasthet'!B19-'Formfunksjon trykkfasthet'!$C$16)))))","v":17.04246847297815}]
[null,28,35.5,36.25,{"$f":"Innstillinger!$F$18+Innstillinger!$F$19*(20-D20)","v":13750},{"$f":"Innstillinger!$F$18","v":30000},30000,1.9100389773564779,49.290319922222281,{"$f":"IF(I20<='Formfunksjon trykkfasthet'!$C$16,0,'Formfunksjon trykkfasthet'!$C$14*EXP('Formfunksjon trykkfasthet'!$C$15*(1-SQRT(672/('Tid-trykkfasthet'!I20-'Formfunksjon trykkfasthet'!$C$16)))))","v":28.694528496983068},{"$f":"IF(B20<='Formfunksjon trykkfasthet'!$C$16,0,'Formfunksjon trykkfasthet'!$C$14*EXP('Formfunksjon trykkfasthet'!$C$15*(1-SQRT(672/('Tid-trykkfasthet'!B20-'Formfunksjon trykkfasthet'!$C$16)))))","v":18.433816603332765}]
[null,30,34,34.75,{"$f":"Innstillinger!$F$18+Innstillinger!$F$19*(20-D21)","v":15250},{"$f":"Innstillinger!$F$18","v":30000},30000,1.8044433367321662,52.899206595686614,{"$f":"IF(I21<='Formfunksjon trykkfasthet'!$C$16,0,'Formfunksjon trykkfasthet'!$C$14*EXP('Formfunksjon trykkfasthet'!$C$15*(1-SQRT(672/('Tid-trykkfasthet'!I21-'Formfunksjon trykkfasthet'!$C$16)))))","v":29.915527363981717},{"$f":"IF(B21<='Formfunksjon trykkfasthet'!$C$16,0,'Formfunksjon trykkfasthet'!$C$14*EXP('Formfunksjon trykkfasthet'!$C$15*(1-SQRT(672/('Tid-trykkfasthet'!B21-'Formfunksjon trykkfasthet'!$C$16)))))","v":19.722718158483179}]
[null,32,33,33.5,{"$f":"Innstillinger!$F$18+Innstillinger!$F$19*(20-D22)","v":16500},{"$f":"Innstillinger!$F$18","v":30000},30000,1.7201887108966101,56.339584017479837,{"$f":"IF(I22<='Formfunksjon trykkfasthet'!$C$16,0,'Formfunksjon trykkfasthet'!$C$14*EXP('Formfunksjon trykkfasthet'!$C$15*(1-SQRT(672/('Tid-trykkfasthet'!I22-'Formfunksjon trykkfasthet'!$C$16)))))","v":30.990721991485739},{"$f":"IF(B22<='Formfunksjon trykkfasthet'!$C$16,0,'Formfunksjon trykkfasthet'!$C$14*EXP('Formfunksjon trykkfasthet'!$C$15*(1-SQRT(672/('Tid-trykkfasthet'!B22-'Formfunksjon trykkfasthet'!$C$16)))))","v":20.9213268272376}]
[null,34,32,32.5,{"$f":"Innstillinger!$F$18+Innstillinger!$F$19*(20-D23)","v":17500},{"$f":"Innstillinger!$F$18","v":30000},30000,1.6551601018476696,59.649904221175177,{"$f":"IF(I23<='Formfunksjon trykkfasthet'!$C$16,0,'Formfunksjon trykkfasthet'!$C$14*EXP('Formfunksjon trykkfasthet'!$C$15*(1-SQRT(672/('Tid-trykkfasthet'!I23-'Formfunksjon trykkfasthet'!$C$16)))))","v":31.953603773794217},{"$f":"IF(B23<='Formfunksjon trykkfasthet'!$C$16,0,'Formfunksjon trykkfasthet'!$C$14*EXP('Formfunksjon trykkfasthet'!$C$15*(1-SQRT(672/('Tid-trykkfasthet'!B23-'Formfunksjon trykkfasthet'!$C$16)))))","v":22.039958366722814}]
[null,36,31,31.5,{"$f":"Innstillinger!$F$18+Innstillinger!$F$19*(20-D24)","v":18500},{"$f":"Innstillinger!$F$18","v":30000},30000,1.5921867291087051,62.834277679392585,{"$f":"IF(I24<='Formfunksjon trykkfasthet'!$C$16,0,'Formfunksjon trykkfasthet'!$C$14*EXP('Formfunksjon trykkfasthet'!$C$15*(1-SQRT(672/('Tid-trykkfasthet'!I24-'Formfunksjon trykkfasthet'!$C$16)))))","v":32.821039638721281},{"$f":"IF(B24<='Formfunksjon trykkfasthet'!$C$16,0,'Formfunksjon trykkfasthet'!$C$14*EXP('Formfunksjon trykkfasthet'!$C$15*(1-SQRT(672/('Tid-trykkfasthet'!B24-'Formfunksjon trykkfasthet'!$C$16)))))","v":23.087392075703097}]
[null,38,30.5,30.75,{"$f":"Innstillinger!$F$18+Innstillinger!$F$19*(20-D25)","v":19250},{"$f":"Innstillinger!$F$18","v":30000},30000,1.5462748829015831,65.926827445195755,{"$f":"IF(I25<='Formfunksjon trykkfasthet'!$C$16,0,'Formfunksjon trykkfasthet'!$C$14*EXP('Formfunksjon trykkfasthet'!$C$15*(1-SQRT(672/('Tid-trykkfasthet'!I25-'Formfunksjon trykkfasthet'!$C$16)))))","v":33.614029732541688},{"$f":"IF(B25<='Formfunksjon trykkfasthet'!$C$16,0,'Formfunksjon trykkfasthet'!$C$14*EXP('Formfunksjon trykkfasthet'!$C$15*(1-SQRT(672/('Tid-trykkfasthet'!B25-'Formfunksjon trykkfasthet'!$C$16)))))","v":24.071131818214312}]
[null,40,30,30.25,{"$f":"Innstillinger!$F$18+Innstillinger!$F$19*(20-D26)","v":19750},{"$f":"Innstillinger!$F$18","v":30000},30000,1.5162829427745255,68.959393330744803,{"$f":"IF(I26<='Formfunksjon trykkfasthet'!$C$16,0,'Formfunksjon trykkfasthet'!$C$14*EXP('Formfunksjon trykkfasthet'!$C$15*(1-SQRT(672/('Tid-trykkfasthet'!I26-'Formfunksjon trykkfasthet'!$C$16)))))","v":34.34893717568719},{"$f":"IF(B26<='Formfunksjon trykkfasthet'!$C$16,0,'Formfunksjon trykkfasthet'!$C$14*EXP('Formfunksjon trykkfasthet'!$C$15*(1-SQRT(672/('Tid-trykkfasthet'!B26-'Formfunksjon trykkfasthet'!$C$16)))))","v":24.99762353237189}]
[null,42,29.5,29.75,{"$f":"Innstillinger!$F$18+Innstillinger!$F$19*(20-D27)","v":20250},{"$f":"Innstillinger!$F$18","v":30000},30000,1.4867765417572378,71.932946414259277,{"$f":"IF(I27<='Formfunksjon trykkfasthet'!$C$16,0,'Formfunksjon trykkfasthet'!$C$14*EXP('Formfunksjon trykkfasthet'!$C$15*(1-SQRT(672/('Tid-trykkfasthet'!I27-'Formfunksjon trykkfasthet'!$C$16)))))","v":35.032235979252341},{"$f":"IF(B27<='Formfunksjon trykkfasthet'!$C$16,0,'Formfunksjon trykkfasthet'!$C$14*EXP('Formfunksjon trykkfasthet'!$C$15*(1-SQRT(672/('Tid-trykkfasthet'!B27-'Formfunksjon trykkfasthet'!$C$16)))))","v":25.872433551628728}]
[null,44,29,29.25,{"$f":"Innstillinger!$F$18+Innstillinger!$F$19*(20-D28)","v":20750},{"$f":"Innstillinger!$F$18","v":30000},30000,1.4577495440069468,74.848445502273165,{"$f":"IF(I28<='Formfunksjon trykkfasthet'!$C$16,0,'Formfunksjon trykkfasthet'!$C$14*EXP('Formfunksjon trykkfasthet'!$C$15*(1-SQRT(672/('Tid-trykkfasthet'!I28-'Formfunksjon trykkfasthet'!$C$16)))))","v":35.669421480828554},{"$f":"IF(B28<='Formfunksjon trykkfasthet'!$C$16,0,'Formfunksjon trykkfasthet'!$C$14*EXP('Formfunksjon trykkfasthet'!$C$15*(1-SQRT(672/('Tid-trykkfasthet'!B28-'Formfunksjon trykkfasthet'!$C$16)))))","v":26.700393929228188}]
[null,46,28.5,28.75,{"$f":"Innstillinger!$F$18+Innstillinger!$F$19*(20-D29)","v":21250},{"$f":"Innstillinger!$F$18","v":30000},30000,1.4291958655578507,77.706837233388868,{"$f":"IF(I29<='Formfunksjon trykkfasthet'!$C$16,0,'Formfunksjon trykkfasthet'!$C$14*EXP('Formfunksjon trykkfasthet'!$C$15*(1-SQRT(672/('Tid-trykkfasthet'!I29-'Formfunksjon trykkfasthet'!$C$16)))))","v":36.265194264267187},{"$f":"IF(B29<='Formfunksjon trykkfasthet'!$C$16,0,'Formfunksjon trykkfasthet'!$C$14*EXP('Formfunksjon trykkfasthet'!$C$15*(1-SQRT(672/('Tid-trykkfasthet'!B29-'Formfunksjon trykkfasthet'!$C$16)))))","v":27.485720791972057}]
[null,48,28,28.25,{"$f":"Innstillinger!$F$18+Innstillinger!$F$19*(20-D30)","v":21750},{"$f":"Innstillinger!$F$18","v":30000},30000,1.4011094741841477,80.50905618175716,{"$f":"IF(I30<='Formfunksjon trykkfasthet'!$C$16,0,'Formfunksjon trykkfasthet'!$C$14*EXP('Formfunksjon trykkfasthet'!$C$15*(1-SQRT(672/('Tid-trykkfasthet'!I30-'Formfunksjon trykkfasthet'!$C$16)))))","v":36.823603320709552},{"$f":"IF(B30<='Formfunksjon trykkfasthet'!$C$16,0,'Formfunksjon trykkfasthet'!$C$14*EXP('Formfunksjon trykkfasthet'!$C$15*(1-SQRT(672/('Tid-trykkfasthet'!B30-'Formfunksjon trykkfasthet'!$C$16)))))","v":28.232110938659218}]
[null,50,27.5,{"$f":"+(C30+C31)/2","v":27.75},{"$f":"Innstillinger!$F$18+Innstillinger!$F$19*(20-D31)","v":22250},{"$f":"Innstillinger!$F$18","v":30000},{"$f":"IF(D31>20,F31,E31)","v":30000},{"$f":"+EXP((G31/8.314)*(1/293-1/(273+D31)))","v":1.3734843892607052},{"$f":"IF((B31-B30)<0,0,I30+H31*(B31-B30))","v":83.256024960278566},{"$f":"IF(I31<='Formfunksjon trykkfasthet'!$C$16,0,'Formfunksjon trykkfasthet'!$C$14*EXP('Formfunksjon trykkfasthet'!$C$15*(1-SQRT(672/('Tid-trykkfasthet'!I31-'Formfunksjon trykkfasthet'!$C$16)))))","v":37.348158741488568},{"$f":"IF(B31<='Formfunksjon trykkfasthet'!$C$16,0,'Formfunksjon trykkfasthet'!$C$14*EXP('Formfunksjon trykkfasthet'!$C$15*(1-SQRT(672/('Tid-trykkfasthet'!B31-'Formfunksjon trykkfasthet'!$C$16)))))","v":28.942820976867619}]
[null,52,27,27.25,{"$f":"Innstillinger!$F$18+Innstillinger!$F$19*(20-D32)","v":22750},{"$f":"Innstillinger!$F$18","v":30000},30000,1.3463146816213336,{"$f":"IF((B32-B31)<0,0,I31+H32*(B32-B31))","v":85.948654323521239},{"$f":"IF(I32<='Formfunksjon trykkfasthet'!$C$16,0,'Formfunksjon trykkfasthet'!$C$14*EXP('Formfunksjon trykkfasthet'!$C$15*(1-SQRT(672/('Tid-trykkfasthet'!I32-'Formfunksjon trykkfasthet'!$C$16)))))","v":37.841921344320475},{"$f":"IF(B32<='Formfunksjon trykkfasthet'!$C$16,0,'Formfunksjon trykkfasthet'!$C$14*EXP('Formfunksjon trykkfasthet'!$C$15*(1-SQRT(672/('Tid-trykkfasthet'!B32-'Formfunksjon trykkfasthet'!$C$16)))))","v":29.620732451097886}]
[null,54,26.5,26.75,{"$f":"Innstillinger!$F$18+Innstillinger!$F$19*(20-D33)","v":23250},{"$f":"Innstillinger!$F$18","v":30000},30000,1.3195944734146994,88.587843270350632,{"$f":"IF(I33<='Formfunksjon trykkfasthet'!$C$16,0,'Formfunksjon trykkfasthet'!$C$14*EXP('Formfunksjon trykkfasthet'!$C$15*(1-SQRT(672/('Tid-trykkfasthet'!I33-'Formfunksjon trykkfasthet'!$C$16)))))","v":38.307574631106853},{"$f":"IF(B33<='Formfunksjon trykkfasthet'!$C$16,0,'Formfunksjon trykkfasthet'!$C$14*EXP('Formfunksjon trykkfasthet'!$C$15*(1-SQRT(672/('Tid-trykkfasthet'!B33-'Formfunksjon trykkfasthet'!$C$16)))))","v":30.26840570947056}]
[null,56,26,26.25,{"$f":"Innstillinger!$F$18+Innstillinger!$F$19*(20-D34)","v":23750},{"$f":"Innstillinger!$F$18","v":30000},30000,1.2933179379578816,91.174479146266393,{"$f":"IF(I34<='Formfunksjon trykkfasthet'!$C$16,0,'Formfunksjon trykkfasthet'!$C$14*EXP('Formfunksjon trykkfasthet'!$C$15*(1-SQRT(672/('Tid-trykkfasthet'!I34-'Formfunksjon trykkfasthet'!$C$16)))))","v":38.747483065824284},{"$f":"IF(B34<='Formfunksjon trykkfasthet'!$C$16,0,'Formfunksjon trykkfasthet'!$C$14*EXP('Formfunksjon trykkfasthet'!$C$15*(1-SQRT(672/('Tid-trykkfasthet'!B34-'Formfunksjon trykkfasthet'!$C$16)))))","v":30.888124685767057}]
[null,58,25.5,25.75,{"$f":"Innstillinger!$F$18+Innstillinger!$F$19*(20-D35)","v":24250},{"$f":"Innstillinger!$F$18","v":30000},30000,1.2674792995875943,93.709437745441576,{"$f":"IF(I35<='Formfunksjon trykkfasthet'!$C$16,0,'Formfunksjon trykkfasthet'!$C$14*EXP('Formfunksjon trykkfasthet'!$C$15*(1-SQRT(672/('Tid-trykkfasthet'!I35-'Formfunksjon trykkfasthet'!$C$16)))))","v":39.163739654724466},{"$f":"IF(B35<='Formfunksjon trykkfasthet'!$C$16,0,'Formfunksjon trykkfasthet'!$C$14*EXP('Formfunksjon trykkfasthet'!$C$15*(1-SQRT(672/('Tid-trykkfasthet'!B35-'Formfunksjon trykkfasthet'!$C$16)))))","v":31.481934321187261}]
[null,null,null,12.75,{"$f":"Innstillinger!$F$18+Innstillinger!$F$19*(20-D36)","v":37250},{"$f":"Innstillinger!$F$18","v":30000},37250,0.67843132668804218,0,{"$f":"IF(I36<='Formfunksjon trykkfasthet'!$C$16,0,'Formfunksjon trykkfasthet'!$C$14*EXP('Formfunksjon trykkfasthet'!$C$15*(1-SQRT(672/('Tid-trykkfasthet'!I36-'Formfunksjon trykkfasthet'!$C$16)))))","v":0},{"$f":"IF(B36<='Formfunksjon trykkfasthet'!$C$16,0,'Formfunksjon trykkfasthet'!$C$14*EXP('Formfunksjon trykkfasthet'!$C$15*(1-SQRT(672/('Tid-trykkfasthet'!B36-'Formfunksjon trykkfasthet'!$C$16)))))","v":0}]
[null,null,null,0,{"$f":"Innstillinger!$F$18+Innstillinger!$F$19*(20-D37)","v":50000},{"$f":"Innstillinger!$F$18","v":30000},50000,0.22230724878671645,0,{"$f":"IF(I37<='Formfunksjon trykkfasthet'!$C$16,0,'Formfunksjon trykkfasthet'!$C$14*EXP('Formfunksjon trykkfasthet'!$C$15*(1-SQRT(672/('Tid-trykkfasthet'!I37-'Formfunksjon trykkfasthet'!$C$16)))))","v":0},{"$f":"IF(B37<='Formfunksjon trykkfasthet'!$C$16,0,'Formfunksjon trykkfasthet'!$C$14*EXP('Formfunksjon trykkfasthet'!$C$15*(1-SQRT(672/('Tid-trykkfasthet'!B37-'Formfunksjon trykkfasthet'!$C$16)))))","v":0}]
[null,null,null,0,{"$f":"Innstillinger!$F$18+Innstillinger!$F$19*(20-D38)","v":50000},{"$f":"Innstillinger!$F$18","v":30000},50000,0.22230724878671645,0,{"$f":"IF(I38<='Formfunksjon trykkfasthet'!$C$16,0,'Formfunksjon trykkfasthet'!$C$14*EXP('Formfunksjon trykkfasthet'!$C$15*(1-SQRT(672/('Tid-trykkfasthet'!I38-'Formfunksjon trykkfasthet'!$C$16)))))","v":0},{"$f":"IF(B38<='Formfunksjon trykkfasthet'!$C$16,0,'Formfunksjon trykkfasthet'!$C$14*EXP('Formfunksjon trykkfasthet'!$C$15*(1-SQRT(672/('Tid-trykkfasthet'!B38-'Formfunksjon trykkfasthet'!$C$16)))))","v":0}]
[null,null,null,0,{"$f":"Innstillinger!$F$18+Innstillinger!$F$19*(20-D39)","v":50000},{"$f":"Innstillinger!$F$18","v":30000},50000,0.22230724878671645,0,{"$f":"IF(I39<='Formfunksjon trykkfasthet'!$C$16,0,'Formfunksjon trykkfasthet'!$C$14*EXP('Formfunksjon trykkfasthet'!$C$15*(1-SQRT(672/('Tid-trykkfasthet'!I39-'Formfunksjon trykkfasthet'!$C$16)))))","v":0},{"$f":"IF(B39<='Formfunksjon trykkfasthet'!$C$16,0,'Formfunksjon trykkfasthet'!$C$14*EXP('Formfunksjon trykkfasthet'!$C$15*(1-SQRT(672/('Tid-trykkfasthet'!B39-'Formfunksjon trykkfasthet'!$C$16)))))","v":0}]
[null,null,null,0,{"$f":"Innstillinger!$F$18+Innstillinger!$F$19*(20-D40)","v":50000},{"$f":"Innstillinger!$F$18","v":30000},50000,0.22230724878671645,0,{"$f":"IF(I40<='Formfunksjon trykkfasthet'!$C$16,0,'Formfunksjon trykkfasthet'!$C$14*EXP('Formfunksjon trykkfasthet'!$C$15*(1-SQRT(672/('Tid-trykkfasthet'!I40-'Formfunksjon trykkfasthet'!$C$16)))))","v":0},{"$f":"IF(B40<='Formfunksjon trykkfasthet'!$C$16,0,'Formfunksjon trykkfasthet'!$C$14*EXP('Formfunksjon trykkfasthet'!$C$15*(1-SQRT(672/('Tid-trykkfasthet'!B40-'Formfunksjon trykkfasthet'!$C$16)))))","v":0}]
[null,null,null,0,{"$f":"Innstillinger!$F$18+Innstillinger!$F$19*(20-D41)","v":50000},{"$f":"Innstillinger!$F$18","v":30000},50000,0.22230724878671645,0,{"$f":"IF(I41<='Formfunksjon trykkfasthet'!$C$16,0,'Formfunksjon trykkfasthet'!$C$14*EXP('Formfunksjon trykkfasthet'!$C$15*(1-SQRT(672/('Tid-trykkfasthet'!I41-'Formfunksjon trykkfasthet'!$C$16)))))","v":0},{"$f":"IF(B41<='Formfunksjon trykkfasthet'!$C$16,0,'Formfunksjon trykkfasthet'!$C$14*EXP('Formfunksjon trykkfasthet'!$C$15*(1-SQRT(672/('Tid-trykkfasthet'!B41-'Formfunksjon trykkfasthet'!$C$16)))))","v":0}]
[null,null,null,0,{"$f":"Innstillinger!$F$18+Innstillinger!$F$19*(20-D42)","v":50000},{"$f":"Innstillinger!$F$18","v":30000},50000,0.22230724878671645,0,{"$f":"IF(I42<='Formfunksjon trykkfasthet'!$C$16,0,'Formfunksjon trykkfasthet'!$C$14*EXP('Formfunksjon trykkfasthet'!$C$15*(1-SQRT(672/('Tid-trykkfasthet'!I42-'Formfunksjon trykkfasthet'!$C$16)))))","v":0},{"$f":"IF(B42<='Formfunksjon trykkfasthet'!$C$16,0,'Formfunksjon trykkfasthet'!$C$14*EXP('Formfunksjon trykkfasthet'!$C$15*(1-SQRT(672/('Tid-trykkfasthet'!B42-'Formfunksjon trykkfasthet'!$C$16)))))","v":0}]
[null,null,null,0,{"$f":"Innstillinger!$F$18+Innstillinger!$F$19*(20-D43)","v":50000},{"$f":"Innstillinger!$F$18","v":30000},50000,0.22230724878671645,0,{"$f":"IF(I43<='Formfunksjon trykkfasthet'!$C$16,0,'Formfunksjon trykkfasthet'!$C$14*EXP('Formfunksjon trykkfasthet'!$C$15*(1-SQRT(672/('Tid-trykkfasthet'!I43-'Formfunksjon trykkfasthet'!$C$16)))))","v":0},{"$f":"IF(B43<='Formfunksjon trykkfasthet'!$C$16,0,'Formfunksjon trykkfasthet'!$C$14*EXP('Formfunksjon trykkfasthet'!$C$15*(1-SQRT(672/('Tid-trykkfasthet'!B43-'Formfunksjon trykkfasthet'!$C$16)))))","v":0}]
[null,null,null,0,{"$f":"Innstillinger!$F$18+Innstillinger!$F$19*(20-D44)","v":50000},{"$f":"Innstillinger!$F$18","v":30000},50000,0.22230724878671645,0,{"$f":"IF(I44<='Formfunksjon trykkfasthet'!$C$16,0,'Formfunksjon trykkfasthet'!$C$14*EXP('Formfunksjon trykkfasthet'!$C$15*(1-SQRT(672/('Tid-trykkfasthet'!I44-'Formfunksjon trykkfasthet'!$C$16)))))","v":0},{"$f":"IF(B44<='Formfunksjon trykkfasthet'!$C$16,0,'Formfunksjon trykkfasthet'!$C$14*EXP('Formfunksjon trykkfasthet'!$C$15*(1-SQRT(672/('Tid-trykkfasthet'!B44-'Formfunksjon trykkfasthet'!$C$16)))))","v":0}]
[null,null,null,0,{"$f":"Innstillinger!$F$18+Innstillinger!$F$19*(20-D45)","v":50000},{"$f":"Innstillinger!$F$18","v":30000},50000,0.22230724878671645,0,{"$f":"IF(I45<='Formfunksjon trykkfasthet'!$C$16,0,'Formfunksjon trykkfasthet'!$C$14*EXP('Formfunksjon trykkfasthet'!$C$15*(1-SQRT(672/('Tid-trykkfasthet'!I45-'Formfunksjon trykkfasthet'!$C$16)))))","v":0},{"$f":"IF(B45<='Formfunksjon trykkfasthet'!$C$16,0,'Formfunksjon trykkfasthet'!$C$14*EXP('Formfunksjon trykkfasthet'!$C$15*(1-SQRT(672/('Tid-trykkfasthet'!B45-'Formfunksjon trykkfasthet'!$C$16)))))","v":0}]
[null,null,null,0,{"$f":"Innstillinger!$F$18+Innstillinger!$F$19*(20-D46)","v":50000},{"$f":"Innstillinger!$F$18","v":30000},50000,0.22230724878671645,0,{"$f":"IF(I46<='Formfunksjon trykkfasthet'!$C$16,0,'Formfunksjon trykkfasthet'!$C$14*EXP('Formfunksjon trykkfasthet'!$C$15*(1-SQRT(672/('Tid-trykkfasthet'!I46-'Formfunksjon trykkfasthet'!$C$16)))))","v":0},{"$f":"IF(B46<='Formfunksjon trykkfasthet'!$C$16,0,'Formfunksjon trykkfasthet'!$C$14*EXP('Formfunksjon trykkfasthet'!$C$15*(1-SQRT(672/('Tid-trykkfasthet'!B46-'Formfunksjon trykkfasthet'!$C$16)))))","v":0}]
[null,null,null,0,{"$f":"Innstillinger!$F$18+Innstillinger!$F$19*(20-D47)","v":50000},{"$f":"Innstillinger!$F$18","v":30000},50000,0.22230724878671645,0,{"$f":"IF(I47<='Formfunksjon trykkfasthet'!$C$16,0,'Formfunksjon trykkfasthet'!$C$14*EXP('Formfunksjon trykkfasthet'!$C$15*(1-SQRT(672/('Tid-trykkfasthet'!I47-'Formfunksjon trykkfasthet'!$C$16)))))","v":0},{"$f":"IF(B47<='Formfunksjon trykkfasthet'!$C$16,0,'Formfunksjon trykkfasthet'!$C$14*EXP('Formfunksjon trykkfasthet'!$C$15*(1-SQRT(672/('Tid-trykkfasthet'!B47-'Formfunksjon trykkfasthet'!$C$16)))))","v":0}]
[null,null,null,0,{"$f":"Innstillinger!$F$18+Innstillinger!$F$19*(20-D48)","v":50000},{"$f":"Innstillinger!$F$18","v":30000},50000,0.22230724878671645,0,{"$f":"IF(I48<='Formfunksjon trykkfasthet'!$C$16,0,'Formfunksjon trykkfasthet'!$C$14*EXP('Formfunksjon trykkfasthet'!$C$15*(1-SQRT(672/('Tid-trykkfasthet'!I48-'Formfunksjon trykkfasthet'!$C$16)))))","v":0},{"$f":"IF(B48<='Formfunksjon trykkfasthet'!$C$16,0,'Formfunksjon trykkfasthet'!$C$14*EXP('Formfunksjon trykkfasthet'!$C$15*(1-SQRT(672/('Tid-trykkfasthet'!B48-'Formfunksjon trykkfasthet'!$C$16)))))","v":0}]
[null,null,null,0,{"$f":"Innstillinger!$F$18+Innstillinger!$F$19*(20-D49)","v":50000},{"$f":"Innstillinger!$F$18","v":30000},50000,0.22230724878671645,0,{"$f":"IF(I49<='Formfunksjon trykkfasthet'!$C$16,0,'Formfunksjon trykkfasthet'!$C$14*EXP('Formfunksjon trykkfasthet'!$C$15*(1-SQRT(672/('Tid-trykkfasthet'!I49-'Formfunksjon trykkfasthet'!$C$16)))))","v":0},{"$f":"IF(B49<='Formfunksjon trykkfasthet'!$C$16,0,'Formfunksjon trykkfasthet'!$C$14*EXP('Formfunksjon trykkfasthet'!$C$15*(1-SQRT(672/('Tid-trykkfasthet'!B49-'Formfunksjon trykkfasthet'!$C$16)))))","v":0}]
[null,null,null,0,{"$f":"Innstillinger!$F$18+Innstillinger!$F$19*(20-D50)","v":50000},{"$f":"Innstillinger!$F$18","v":30000},50000,0.22230724878671645,0,{"$f":"IF(I50<='Formfunksjon trykkfasthet'!$C$16,0,'Formfunksjon trykkfasthet'!$C$14*EXP('Formfunksjon trykkfasthet'!$C$15*(1-SQRT(672/('Tid-trykkfasthet'!I50-'Formfunksjon trykkfasthet'!$C$16)))))","v":0},{"$f":"IF(B50<='Formfunksjon trykkfasthet'!$C$16,0,'Formfunksjon trykkfasthet'!$C$14*EXP('Formfunksjon trykkfasthet'!$C$15*(1-SQRT(672/('Tid-trykkfasthet'!B50-'Formfunksjon trykkfasthet'!$C$16)))))","v":0}]
[null,null,null,0,{"$f":"Innstillinger!$F$18+Innstillinger!$F$19*(20-D51)","v":50000},{"$f":"Innstillinger!$F$18","v":30000},50000,0.22230724878671645,0,{"$f":"IF(I51<='Formfunksjon trykkfasthet'!$C$16,0,'Formfunksjon trykkfasthet'!$C$14*EXP('Formfunksjon trykkfasthet'!$C$15*(1-SQRT(672/('Tid-trykkfasthet'!I51-'Formfunksjon trykkfasthet'!$C$16)))))","v":0},{"$f":"IF(B51<='Formfunksjon trykkfasthet'!$C$16,0,'Formfunksjon trykkfasthet'!$C$14*EXP('Formfunksjon trykkfasthet'!$C$15*(1-SQRT(672/('Tid-trykkfasthet'!B51-'Formfunksjon trykkfasthet'!$C$16)))))","v":0}]
[null,null,null,0,{"$f":"Innstillinger!$F$18+Innstillinger!$F$19*(20-D52)","v":50000},{"$f":"Innstillinger!$F$18","v":30000},50000,0.22230724878671645,0,{"$f":"IF(I52<='Formfunksjon trykkfasthet'!$C$16,0,'Formfunksjon trykkfasthet'!$C$14*EXP('Formfunksjon trykkfasthet'!$C$15*(1-SQRT(672/('Tid-trykkfasthet'!I52-'Formfunksjon trykkfasthet'!$C$16)))))","v":0},{"$f":"IF(B52<='Formfunksjon trykkfasthet'!$C$16,0,'Formfunksjon trykkfasthet'!$C$14*EXP('Formfunksjon trykkfasthet'!$C$15*(1-SQRT(672/('Tid-trykkfasthet'!B52-'Formfunksjon trykkfasthet'!$C$16)))))","v":0}]
[null,null,null,0,{"$f":"Innstillinger!$F$18+Innstillinger!$F$19*(20-D53)","v":50000},{"$f":"Innstillinger!$F$18","v":30000},50000,0.22230724878671645,0,{"$f":"IF(I53<='Formfunksjon trykkfasthet'!$C$16,0,'Formfunksjon trykkfasthet'!$C$14*EXP('Formfunksjon trykkfasthet'!$C$15*(1-SQRT(672/('Tid-trykkfasthet'!I53-'Formfunksjon trykkfasthet'!$C$16)))))","v":0},{"$f":"IF(B53<='Formfunksjon trykkfasthet'!$C$16,0,'Formfunksjon trykkfasthet'!$C$14*EXP('Formfunksjon trykkfasthet'!$C$15*(1-SQRT(672/('Tid-trykkfasthet'!B53-'Formfunksjon trykkfasthet'!$C$16)))))","v":0}]
[null,null,null,0,{"$f":"Innstillinger!$F$18+Innstillinger!$F$19*(20-D54)","v":50000},{"$f":"Innstillinger!$F$18","v":30000},50000,0.22230724878671645,0,{"$f":"IF(I54<='Formfunksjon trykkfasthet'!$C$16,0,'Formfunksjon trykkfasthet'!$C$14*EXP('Formfunksjon trykkfasthet'!$C$15*(1-SQRT(672/('Tid-trykkfasthet'!I54-'Formfunksjon trykkfasthet'!$C$16)))))","v":0},{"$f":"IF(B54<='Formfunksjon trykkfasthet'!$C$16,0,'Formfunksjon trykkfasthet'!$C$14*EXP('Formfunksjon trykkfasthet'!$C$15*(1-SQRT(672/('Tid-trykkfasthet'!B54-'Formfunksjon trykkfasthet'!$C$16)))))","v":0}]
[null,null,null,0,{"$f":"Innstillinger!$F$18+Innstillinger!$F$19*(20-D55)","v":50000},{"$f":"Innstillinger!$F$18","v":30000},50000,0.22230724878671645,0,{"$f":"IF(I55<='Formfunksjon trykkfasthet'!$C$16,0,'Formfunksjon trykkfasthet'!$C$14*EXP('Formfunksjon trykkfasthet'!$C$15*(1-SQRT(672/('Tid-trykkfasthet'!I55-'Formfunksjon trykkfasthet'!$C$16)))))","v":0},{"$f":"IF(B55<='Formfunksjon trykkfasthet'!$C$16,0,'Formfunksjon trykkfasthet'!$C$14*EXP('Formfunksjon trykkfasthet'!$C$15*(1-SQRT(672/('Tid-trykkfasthet'!B55-'Formfunksjon trykkfasthet'!$C$16)))))","v":0}]
[null,null,null,0,{"$f":"Innstillinger!$F$18+Innstillinger!$F$19*(20-D56)","v":50000},{"$f":"Innstillinger!$F$18","v":30000},50000,0.22230724878671645,0,{"$f":"IF(I56<='Formfunksjon trykkfasthet'!$C$16,0,'Formfunksjon trykkfasthet'!$C$14*EXP('Formfunksjon trykkfasthet'!$C$15*(1-SQRT(672/('Tid-trykkfasthet'!I56-'Formfunksjon trykkfasthet'!$C$16)))))","v":0},{"$f":"IF(B56<='Formfunksjon trykkfasthet'!$C$16,0,'Formfunksjon trykkfasthet'!$C$14*EXP('Formfunksjon trykkfasthet'!$C$15*(1-SQRT(672/('Tid-trykkfasthet'!B56-'Formfunksjon trykkfasthet'!$C$16)))))","v":0}]
[null,null,null,0,{"$f":"Innstillinger!$F$18+Innstillinger!$F$19*(20-D57)","v":50000},{"$f":"Innstillinger!$F$18","v":30000},50000,0.22230724878671645,0,{"$f":"IF(I57<='Formfunksjon trykkfasthet'!$C$16,0,'Formfunksjon trykkfasthet'!$C$14*EXP('Formfunksjon trykkfasthet'!$C$15*(1-SQRT(672/('Tid-trykkfasthet'!I57-'Formfunksjon trykkfasthet'!$C$16)))))","v":0},{"$f":"IF(B57<='Formfunksjon trykkfasthet'!$C$16,0,'Formfunksjon trykkfasthet'!$C$14*EXP('Formfunksjon trykkfasthet'!$C$15*(1-SQRT(672/('Tid-trykkfasthet'!B57-'Formfunksjon trykkfasthet'!$C$16)))))","v":0}]
[null,null,null,0,{"$f":"Innstillinger!$F$18+Innstillinger!$F$19*(20-D58)","v":50000},{"$f":"Innstillinger!$F$18","v":30000},50000,0.22230724878671645,0,{"$f":"IF(I58<='Formfunksjon trykkfasthet'!$C$16,0,'Formfunksjon trykkfasthet'!$C$14*EXP('Formfunksjon trykkfasthet'!$C$15*(1-SQRT(672/('Tid-trykkfasthet'!I58-'Formfunksjon trykkfasthet'!$C$16)))))","v":0},{"$f":"IF(B58<='Formfunksjon trykkfasthet'!$C$16,0,'Formfunksjon trykkfasthet'!$C$14*EXP('Formfunksjon trykkfasthet'!$C$15*(1-SQRT(672/('Tid-trykkfasthet'!B58-'Formfunksjon trykkfasthet'!$C$16)))))","v":0}]
[null,null,null,0,{"$f":"Innstillinger!$F$18+Innstillinger!$F$19*(20-D59)","v":50000},{"$f":"Innstillinger!$F$18","v":30000},50000,0.22230724878671645,0,{"$f":"IF(I59<='Formfunksjon trykkfasthet'!$C$16,0,'Formfunksjon trykkfasthet'!$C$14*EXP('Formfunksjon trykkfasthet'!$C$15*(1-SQRT(672/('Tid-trykkfasthet'!I59-'Formfunksjon trykkfasthet'!$C$16)))))","v":0},{"$f":"IF(B59<='Formfunksjon trykkfasthet'!$C$16,0,'Formfunksjon trykkfasthet'!$C$14*EXP('Formfunksjon trykkfasthet'!$C$15*(1-SQRT(672/('Tid-trykkfasthet'!B59-'Formfunksjon trykkfasthet'!$C$16)))))","v":0}]
[null,null,null,{"$f":"+(C59+C60)/2","v":0},{"$f":"Innstillinger!$F$18+Innstillinger!$F$19*(20-D60)","v":50000},{"$f":"Innstillinger!$F$18","v":30000},{"$f":"IF(D60>20,F60,E60)","v":50000},{"$f":"+EXP((G60/8.314)*(1/293-1/(273+D60)))","v":0.22230724878671645},0,{"$f":"IF(I60<='Formfunksjon trykkfasthet'!$C$16,0,'Formfunksjon trykkfasthet'!$C$14*EXP('Formfunksjon trykkfasthet'!$C$15*(1-SQRT(672/('Tid-trykkfasthet'!I60-'Formfunksjon trykkfasthet'!$C$16)))))","v":0},{"$f":"IF(B60<='Formfunksjon trykkfasthet'!$C$16,0,'Formfunksjon trykkfasthet'!$C$14*EXP('Formfunksjon trykkfasthet'!$C$15*(1-SQRT(672/('Tid-trykkfasthet'!B60-'Formfunksjon trykkfasthet'!$C$16)))))","v":0}]
[null,null,null,0,{"$f":"Innstillinger!$F$18+Innstillinger!$F$19*(20-D61)","v":50000},{"$f":"Innstillinger!$F$18","v":30000},50000,0.22230724878671645,0,{"$f":"IF(I61<='Formfunksjon trykkfasthet'!$C$16,0,'Formfunksjon trykkfasthet'!$C$14*EXP('Formfunksjon trykkfasthet'!$C$15*(1-SQRT(672/('Tid-trykkfasthet'!I61-'Formfunksjon trykkfasthet'!$C$16)))))","v":0},{"$f":"IF(B61<='Formfunksjon trykkfasthet'!$C$16,0,'Formfunksjon trykkfasthet'!$C$14*EXP('Formfunksjon trykkfasthet'!$C$15*(1-SQRT(672/('Tid-trykkfasthet'!B61-'Formfunksjon trykkfasthet'!$C$16)))))","v":0}]
[null,null,null,0,{"$f":"Innstillinger!$F$18+Innstillinger!$F$19*(20-D62)","v":50000},{"$f":"Innstillinger!$F$18","v":30000},50000,0.22230724878671645,0,{"$f":"IF(I62<='Formfunksjon trykkfasthet'!$C$16,0,'Formfunksjon trykkfasthet'!$C$14*EXP('Formfunksjon trykkfasthet'!$C$15*(1-SQRT(672/('Tid-trykkfasthet'!I62-'Formfunksjon trykkfasthet'!$C$16)))))","v":0},{"$f":"IF(B62<='Formfunksjon trykkfasthet'!$C$16,0,'Formfunksjon trykkfasthet'!$C$14*EXP('Formfunksjon trykkfasthet'!$C$15*(1-SQRT(672/('Tid-trykkfasthet'!B62-'Formfunksjon trykkfasthet'!$C$16)))))","v":0}]
[null,null,null,0,{"$f":"Innstillinger!$F$18+Innstillinger!$F$19*(20-D63)","v":50000},{"$f":"Innstillinger!$F$18","v":30000},50000,0.22230724878671645,0,{"$f":"IF(I63<='Formfunksjon trykkfasthet'!$C$16,0,'Formfunksjon trykkfasthet'!$C$14*EXP('Formfunksjon trykkfasthet'!$C$15*(1-SQRT(672/('Tid-trykkfasthet'!I63-'Formfunksjon trykkfasthet'!$C$16)))))","v":0},{"$f":"IF(B63<='Formfunksjon trykkfasthet'!$C$16,0,'Formfunksjon trykkfasthet'!$C$14*EXP('Formfunksjon trykkfasthet'!$C$15*(1-SQRT(672/('Tid-trykkfasthet'!B63-'Formfunksjon trykkfasthet'!$C$16)))))","v":0}]
[null,null,null,0,{"$f":"Innstillinger!$F$18+Innstillinger!$F$19*(20-D64)","v":50000},{"$f":"Innstillinger!$F$18","v":30000},50000,0.22230724878671645,0,{"$f":"IF(I64<='Formfunksjon trykkfasthet'!$C$16,0,'Formfunksjon trykkfasthet'!$C$14*EXP('Formfunksjon trykkfasthet'!$C$15*(1-SQRT(672/('Tid-trykkfasthet'!I64-'Formfunksjon trykkfasthet'!$C$16)))))","v":0},{"$f":"IF(B64<='Formfunksjon trykkfasthet'!$C$16,0,'Formfunksjon trykkfasthet'!$C$14*EXP('Formfunksjon trykkfasthet'!$C$15*(1-SQRT(672/('Tid-trykkfasthet'!B64-'Formfunksjon trykkfasthet'!$C$16)))))","v":0}]
[null,null,null,0,{"$f":"Innstillinger!$F$18+Innstillinger!$F$19*(20-D65)","v":50000},{"$f":"Innstillinger!$F$18","v":30000},50000,0.22230724878671645,0,{"$f":"IF(I65<='Formfunksjon trykkfasthet'!$C$16,0,'Formfunksjon trykkfasthet'!$C$14*EXP('Formfunksjon trykkfasthet'!$C$15*(1-SQRT(672/('Tid-trykkfasthet'!I65-'Formfunksjon trykkfasthet'!$C$16)))))","v":0},{"$f":"IF(B65<='Formfunksjon trykkfasthet'!$C$16,0,'Formfunksjon trykkfasthet'!$C$14*EXP('Formfunksjon trykkfasthet'!$C$15*(1-SQRT(672/('Tid-trykkfasthet'!B65-'Formfunksjon trykkfasthet'!$C$16)))))","v":0}]
[null,null,null,0,{"$f":"Innstillinger!$F$18+Innstillinger!$F$19*(20-D66)","v":50000},{"$f":"Innstillinger!$F$18","v":30000},50000,0.22230724878671645,0,{"$f":"IF(I66<='Formfunksjon trykkfasthet'!$C$16,0,'Formfunksjon trykkfasthet'!$C$14*EXP('Formfunksjon trykkfasthet'!$C$15*(1-SQRT(672/('Tid-trykkfasthet'!I66-'Formfunksjon trykkfasthet'!$C$16)))))","v":0},{"$f":"IF(B66<='Formfunksjon trykkfasthet'!$C$16,0,'Formfunksjon trykkfasthet'!$C$14*EXP('Formfunksjon trykkfasthet'!$C$15*(1-SQRT(672/('Tid-trykkfasthet'!B66-'Formfunksjon trykkfasthet'!$C$16)))))","v":0}]
[null,null,null,0,{"$f":"Innstillinger!$F$18+Innstillinger!$F$19*(20-D67)","v":50000},{"$f":"Innstillinger!$F$18","v":30000},50000,0.22230724878671645,0,{"$f":"IF(I67<='Formfunksjon trykkfasthet'!$C$16,0,'Formfunksjon trykkfasthet'!$C$14*EXP('Formfunksjon trykkfasthet'!$C$15*(1-SQRT(672/('Tid-trykkfasthet'!I67-'Formfunksjon trykkfasthet'!$C$16)))))","v":0},{"$f":"IF(B67<='Formfunksjon trykkfasthet'!$C$16,0,'Formfunksjon trykkfasthet'!$C$14*EXP('Formfunksjon trykkfasthet'!$C$15*(1-SQRT(672/('Tid-trykkfasthet'!B67-'Formfunksjon trykkfasthet'!$C$16)))))","v":0}]
[null,null,null,0,{"$f":"Innstillinger!$F$18+Innstillinger!$F$19*(20-D68)","v":50000},{"$f":"Innstillinger!$F$18","v":30000},50000,0.22230724878671645,0,{"$f":"IF(I68<='Formfunksjon trykkfasthet'!$C$16,0,'Formfunksjon trykkfasthet'!$C$14*EXP('Formfunksjon trykkfasthet'!$C$15*(1-SQRT(672/('Tid-trykkfasthet'!I68-'Formfunksjon trykkfasthet'!$C$16)))))","v":0},{"$f":"IF(B68<='Formfunksjon trykkfasthet'!$C$16,0,'Formfunksjon trykkfasthet'!$C$14*EXP('Formfunksjon trykkfasthet'!$C$15*(1-SQRT(672/('Tid-trykkfasthet'!B68-'Formfunksjon trykkfasthet'!$C$16)))))","v":0}]

{"sheet":"Formfunksjon trykkfasthet","index":1,"n_rows":18,"n_cols":7,"rows_kept":18,"cut":false,"hidden":false,"merged":[]}
[]
[null,"Tilpasning av formfunksjon - trykkfasthet"]
[]
[]
[null,"Tid (døgn)","Tid (timer)","FIB-modell","Målt trykk-fasthet","Vekt ved avvik","Dyv+1"]
[null,{"$f":"C6/24","v":0.32783357591579615},{"$f":"C16","v":7.8680058219791071},{"$f":"IF(C6>C$16,$C$14*EXP($C$15*(1-SQRT(672/(C6-$C$16)))),0)","v":0},0,"-","-"]
[null,{"$f":"C7/24","v":0.5},12,{"$f":"IF(C7>C$16,$C$14*EXP($C$15*(1-SQRT(672/(C7-$C$16)))),0)","v":3.1584553451839832},3,1,{"$f":"F7*ABS((E7-D7)^2)","v":2.5108096417375263E-2}]
[null,1,24,{"$f":"IF(C8>C$16,$C$14*EXP($C$15*(1-SQRT(672/(C8-$C$16)))),0)","v":15.534365178324363},16,1,{"$f":"F8*ABS((E8-D8)^2)","v":0.21681578715690264}]
[null,3,72,35.047244220853997,34,1,1.096720458112096]
[null,7,168,47.336234474668736,48,1,0.44058467261828943]
[null,14,336,55.33697755778514,56,1,0.43959875888055744]
[null,28,672,{"$f":"IF(C12>C$16,$C$14*EXP($C$15*(1-SQRT(672/(C12-$C$16)))),0)","v":61.618894261425737},61,1,0.38303010682570865]
[]
[null,"fc28",61.711003174403366]
[null,"s",0.2529086532117778]
[null,"t0",7.8680058219791071]
[null,"SDy2",{"$f":"SUM(G7:G12)","v":2.6018578800109293}]
[null,"R2",{"$f":"CORREL(D7:D12,E7:E12)","v":0.99951118426941643}]

{"sheet":"Innstillinger","index":2,"n_rows":19,"n_cols":6,"rows_kept":19,"cut":false,"hidden":false,"merged":[]}
[]
[]
[null,"Modenhet"]
[]
[]
[]
[]
[]
[null,"Hastighetsfunksjonen"]
[]
[]
[]
[]
[]
[]
[null,"Temperaturfølsomhet"]
[]
[null,null,null,null,"A",30000]
[null,null,null,null,"B",1000]